bitfinex-derivatives/quotes_SOLF0:USTF0_20250821
["timestamp","ask_amount","ask_price","bid_price","bid_amount"]
[1755736726593,7.08520644,189.13,189.07,9.394433]
[1755736726798,7.08520644,189.13,189.08,4.7447598]
[1755736726994,7.08520644,189.11,189.02,7.08520644]
[1755736727200,7.08520644,189.09,189.03,6.65487804]
[1755736727398,7.08520644,189.09,189.04,6.65487804]
[1755736727697,7.08520644,189.09,189.05,4.74473171]
[1755736727903,7.08520644,189.07,189.06,4.77913556]
[1755736728109,7.08520644,189.07,189.04,0.0353534]
[1755736728296,7.08520644,189.05,189.04,0.0353534]
[1755736728804,7.08520644,189.06,189.04,0.0353534]
[1755736730197,7.08520644,189.09,189.05,4.78354885]
[1755736730402,7.08520644,189.13,189.06,11.86833744]
[1755736730697,7.08520644,189.15,189.07,6.70269289]
[1755736730903,7.08520644,189.15,189.08,6.70223557]
[1755736731204,362.70520644,189.18,189.1,9.82520644]
[1755736731405,362.70520644,189.18,189.11,4.783131]
[1755736731605,7.08520644,189.15,189.1,2.74]
[1755736731802,7.08520644,189.15,189.11,4.77942094]
[1755736731999,355.62,189.18,189.09,0.03519702]
[1755736732200,362.70520644,189.18,189.1,16.52316521]
[1755736732499,7.08520644,189.2,189.12,7.08520644]
[1755736732699,7.08520644,189.18,189.13,6.69707444]
[1755736733006,7.08520644,189.16,189.14,4.77715276]
[1755736733206,7.08520644,189.24,189.14,4.77715276]
[1755736733207,7.08520644,189.18,189.15,4.77642902]
[1755736733405,7.08520644,189.18,189.14,0.03987828]
[1755736733602,7.08520644,189.18,189.15,4.77611173]
[1755736733799,7.08520644,189.18,189.14,0.03987828]
[1755736733994,7.08520644,189.18,189.15,4.77581225]
[1755736734200,7.08520644,189.18,189.14,0.03987828]
[1755736734402,7.08520644,189.18,189.15,4.7751461]
[1755736734605,7.08520644,189.18,189.16,4.77514367]
[1755736734904,7.08520644,189.18,189.14,0.03987828]
[1755736735098,7.08520644,189.18,189.15,4.77502942]
[1755736735300,7.08520644,189.18,189.16,4.77502942]
[1755736735499,7.08520644,189.18,189.14,0.03987828]
[1755736735500,14.17041288,189.18,189.14,0.03987828]
[1755736735803,7.08520644,189.15,189.14,0.03987828]
[1755736736195,7.08520644,189.12,189.06,2.74]
[1755736736400,7.08520644,189.1,189.07,6.69644659]
[1755736736598,7.08520644,189.1,189.08,6.69644659]
[1755736736804,7.08520644,189.1,189.09,6.69644659]
[1755736737203,7.08520644,189.1,189.09,4.77832072]
[1755736737402,7.60520644,189.1,189.0,2.97]
[1755736737597,7.08520644,189.05,189.01,6.70247016]
[1755736737802,7.08520644,189.05,189.02,6.70247016]
[1755736738004,7.08520644,189.03,188.96,7.08520644]
[1755736738197,7.08520644,189.03,188.97,6.70382095]
[1755736738504,7.08520644,189.03,188.98,6.70382095]
[1755736738805,7.08520644,189.03,188.99,6.70382095]
[1755736739006,7.08520644,189.03,189.0,6.70382095]
[1755736739205,7.08520644,189.03,188.95,15.34680644]
[1755736739206,7.08520644,189.03,189.01,4.78347257]
[1755736739504,7.08520644,189.03,188.95,10.05520644]
[1755736739703,7.08520644,189.01,188.96,6.70224511]
[1755736739905,7.08520644,188.99,188.97,4.78234375]
[1755736740209,7.08520644,188.99,188.88,2.97]
[1755736740402,7.08520644,188.94,188.9,2.97]
[1755736740605,7.08520644,188.94,188.91,9.68157304]
[1755736740906,7.08520644,188.96,188.92,9.6808577]
[1755736741108,7.08520644,188.96,188.93,4.78887788]
[1755736741301,0.03691467,188.94,188.92,2.97]
[1755736741603,7.12212111,188.94,188.93,4.7866646]
[1755736741806,14.20732755,188.94,188.86,2.97]
[1755736742005,14.20732755,188.94,188.84,191.51136595]
[1755736742006,7.08520644,188.89,188.87,1.92279604]
[1755736742203,7.08520644,188.89,188.84,184.42615951]
[1755736742403,7.08520644,188.87,188.85,4.78922847]
[1755736742601,7.08520644,188.87,188.82,2.97]
[1755736742902,7.08520644,188.87,188.7,547.73028475]
[1755736742903,7.08520644,188.83,188.77,2.97]
[1755736743112,7.08520644,188.87,188.7,547.73028475]
[1755736743113,7.08520644,188.8,188.78,4.79277728]
[1755736743400,7.08520644,188.8,188.73,2.97]
[1755736743606,7.08520644,188.78,188.74,4.79358621]
[1755736743808,7.08520644,188.78,188.75,4.79358621]
[1755736744001,7.08520644,188.78,188.74,2.97]
[1755736744206,7.08520644,188.78,188.75,4.79475728]
[1755736744400,7.08520644,188.8,188.76,4.79913794]
[1755736744601,7.08520644,188.8,188.73,2.97]
[1755736744802,7.08520644,188.8,188.74,6.72563623]
[1755736745008,7.08520644,188.8,188.75,7.76872974]
[1755736745309,0.03862378,188.78,188.76,4.79872974]
[1755736745512,0.03862378,188.78,188.77,4.79872974]
[1755736747108,0.03862378,188.78,188.75,2.97]
[1755736747304,0.03862378,188.78,188.76,4.793091]
[1755736747611,0.03862378,188.78,188.77,4.793091]
[1755736748208,0.03862378,188.78,188.77,7.76454156]
[1755736748410,0.03862378,188.78,188.77,4.79454156]
[1755736748712,0.03862378,188.78,188.77,4.78932901]
[1755736749208,0.03862378,188.78,188.72,7.08520644]
[1755736749414,0.03862378,188.78,188.73,6.70547301]
[1755736749609,0.03862378,188.78,188.75,2.97]
[1755736749809,0.03862378,188.78,188.76,7.75434596]
[1755736750005,0.03862378,188.78,188.77,4.78434596]
[1755736750210,0.03862378,188.78,188.77,7.75434596]
[1755736750411,0.03862378,188.78,188.77,4.78434596]
[1755736753011,0.03862378,188.78,188.73,2.97]
[1755736753211,7.12383022,188.78,188.74,4.78383907]
[1755736753412,7.12383022,188.78,188.75,4.78383907]
[1755736753611,7.12383022,188.78,188.76,4.78383907]
[1755736753816,7.12383022,188.78,188.73,2.97]
[1755736754012,7.12383022,188.78,188.74,4.78379307]
[1755736754213,0.03862378,188.78,188.75,4.78379307]
[1755736754413,0.03862378,188.78,188.76,4.78379307]
[1755736754614,0.03862378,188.78,188.72,10.05520644]
[1755736754908,0.03862378,188.78,188.74,2.97]
[1755736755116,0.03862378,188.78,188.75,7.75076202]
[1755736755416,0.03862378,188.78,188.76,4.78076202]
[1755736755616,0.03862378,188.78,188.75,2.97]
[1755736755812,0.03862378,188.78,188.76,4.77698886]
[1755736756013,0.03862378,188.78,188.75,2.97]
[1755736756213,0.03862378,188.78,188.76,4.77698886]
[1755736756413,0.03862378,188.78,188.75,2.97]
[1755736756609,0.06862378,188.78,188.7,7.08520644]
[1755736756808,0.06862378,188.78,188.71,4.77698964]
[1755736757011,0.06862378,188.78,188.72,4.77698964]
[1755736757216,0.06862378,188.78,188.73,4.77698964]
[1755736757414,0.06862378,188.78,188.74,4.77698964]
[1755736757614,0.06862378,188.78,188.7,7.08520644]
[1755736757817,0.03862378,188.78,188.72,7.08520644]
[1755736758015,0.03862378,188.78,188.73,4.76193069]
[1755736758223,0.03862378,188.78,188.76,2.97]
[1755736758716,7.11520644,188.83,188.76,2.97]
[1755736758921,0.03785173,188.79,188.76,2.97]
[1755736762528,7.11520644,188.9,188.79,2.97]
[1755736762728,7.11520644,188.9,188.82,7.08520644]
[1755736763022,0.03,188.9,188.85,7.08520644]
[1755736763224,0.07,188.88,188.83,7.08520644]
[1755736763423,0.07,188.87,188.83,7.08520644]
[1755736763824,0.07,188.87,188.84,0.03619225]
[1755736765319,7.08520644,188.9,188.84,0.03619225]
[1755736766028,7.08520644,188.88,188.84,0.03619225]
[1755736766224,0.06,188.85,188.84,0.03619225]
[1755736768529,0.58,188.85,188.75,2.97]
[1755736768831,7.08520644,188.8,188.77,2.97]
[1755736769023,7.08520644,188.82,188.77,2.97]
[1755736769226,7.08520644,188.8,188.74,7.08520644]
[1755736769434,7.08520644,188.76,188.72,2.97]
[1755736770834,7.08520644,188.74,188.67,2.97]
[1755736771025,7.08520644,188.74,188.67,7.08520644]
[1755736771630,0.03694063,188.72,188.67,7.08520644]
[1755736771829,0.03694063,188.72,188.69,2.97]
[1755736772136,0.03694063,188.72,188.71,2.97]
[1755736773536,0.03694063,188.72,188.68,2.97]
[1755736773835,0.03694063,188.72,188.69,2.97]
[1755736774046,7.12214707,188.72,188.65,10.05520644]
[1755736774335,0.03694063,188.72,188.67,7.08520644]
[1755736774536,0.03694063,188.72,188.68,2.97]
[1755736775037,0.03694063,188.72,188.69,2.97]
[1755736778642,7.12214707,188.72,188.66,7.08520644]
[1755736778831,7.12214707,188.72,188.65,2.97]
[1755736779038,7.12214707,188.72,188.66,4.76581829]
[1755736779240,7.12214707,188.72,188.67,4.7761884]
[1755736779436,0.03694063,188.72,188.69,2.97]
[1755736779840,7.08520644,188.74,188.69,2.97]
[1755736780245,0.03428384,188.72,188.69,2.97]
[1755736780443,0.03428384,188.72,188.7,4.78952487]
[1755736780749,0.03428384,188.72,188.71,4.78952487]
[1755736784044,0.09428384,188.72,188.71,4.78952487]
[1755736784245,0.09428384,188.72,188.65,2.97]
[1755736784442,7.14520644,188.71,188.66,6.74122019]
[1755736784642,0.03428384,188.72,188.67,6.74523899]
[1755736784841,7.08520644,188.68,188.6,4.31611105]
[1755736785041,7.08520644,188.64,188.61,1.9404177]
[1755736785242,7.08520644,188.64,188.62,1.9404177]
[1755736785442,7.08520644,188.64,188.63,1.9404177]
[1755736785642,7.12340451,188.64,188.63,1.9404177]
[1755736785948,7.12340451,188.64,188.63,1.93965313]
[1755736786240,0.03819807,188.64,188.63,1.93837768]
[1755736791351,0.03819807,188.64,188.6,2.97]
[1755736791552,0.03819807,188.64,188.61,1.93961275]
[1755736791752,0.03819807,188.64,188.62,1.93961275]
[1755736791954,0.03819807,188.64,188.61,2.97]
[1755736792157,7.08520644,188.62,188.54,2.97]
[1755736792449,7.08520644,188.61,188.56,2.97]
[1755736792653,7.08520644,188.61,188.57,4.91116712]
[1755736792854,0.03735331,188.6,188.58,1.94116712]
[1755736793045,0.03735331,188.6,188.57,2.97]
[1755736793454,7.08520644,188.59,188.51,2.97]
[1755736793656,7.08520644,188.59,188.52,1.94082249]
[1755736793848,7.08520644,188.61,188.54,2.97]
[1755736794054,7.08520644,188.61,188.55,1.94082249]
[1755736794254,0.03667191,188.57,188.56,1.94082249]
[1755736794755,7.08520644,188.59,188.56,1.94082249]
[1755736795053,0.04017549,188.58,188.54,2.97]
[1755736795253,0.04017549,188.58,188.55,1.93885094]
[1755736795458,7.08520644,188.57,188.54,2.97]
[1755736795853,0.04017549,188.58,188.54,2.96]
[1755736796060,7.12538193,188.58,188.52,2.96]
[1755736796261,7.12538193,188.58,188.54,2.96]
[1755736797351,7.08520644,188.56,188.5,10.04520644]
[1755736797557,7.08520644,188.56,188.51,1.93760552]
[1755736797759,7.08520644,188.56,188.52,4.89760552]
[1755736798059,7.08520644,188.56,188.52,2.96]
[1755736798463,7.12110831,188.56,188.52,2.96]
[1755736799262,0.03590187,188.56,188.53,2.96]
[1755736800166,0.03590187,188.56,188.51,7.08520644]
[1755736800362,0.03590187,188.56,188.54,2.96]
[1755736800557,7.12110831,188.56,188.49,10.04520644]
[1755736800757,7.12110831,188.56,188.5,1.93866792]
[1755736800954,7.12110831,188.56,188.51,4.89866792]
[1755736801162,7.12110831,188.56,188.51,2.96]
[1755736801452,7.19110831,188.56,188.51,2.96]
[1755736801661,7.08520644,188.54,188.47,2.96]
[1755736802055,7.08520644,188.5,188.44,7.08520644]
[1755736802260,7.15520644,188.5,188.49,0.04024077]
[1755736802754,7.69520644,188.5,188.39,10.04520644]
[1755736803061,7.08520644,188.45,188.39,2.96]
[1755736804062,0.03505487,188.46,188.39,10.04520644]
[1755736805159,7.08520644,188.45,188.39,2.96]
[1755736805760,7.08520644,188.45,188.39,10.04520644]
[1755736805958,7.12026131,188.46,188.39,10.04520644]
[1755736806357,0.03505487,188.46,188.43,2.96]
[1755736806661,7.08520644,188.5,188.45,2.96]
[1755736806961,0.03681907,188.46,188.45,2.96]
[1755736807362,0.03681907,188.46,188.45,10.04520644]
[1755736810164,0.07,188.54,188.45,10.04520644]
[1755736810462,0.07,188.54,188.48,7.08520644]
[1755736810660,0.07,188.54,188.45,2.96]
[1755736810860,7.08520644,188.53,188.45,10.04520644]
[1755736811568,0.11,188.48,188.47,0.03449586]
[1755736812656,7.08520644,188.53,188.47,0.03449586]
[1755736812856,7.08520644,188.54,188.47,7.1197023]
[1755736813568,490.4,188.55,188.47,0.03449586]
[1755736813764,7.08520644,188.53,188.47,0.03449586]
[1755736814167,7.08520644,188.53,188.47,7.1197023]
[1755736814873,7.08520644,188.51,188.47,0.03449586]
[1755736815067,0.11,188.5,188.47,0.03449586]
[1755736815267,7.19520644,188.49,188.47,0.03449586]
[1755736817466,134.03,188.48,188.47,0.03449586]
[1755736822867,134.03,188.48,188.38,2.96]
[1755736823171,7.08520644,188.44,188.38,2.96]
[1755736823870,7.08520644,188.45,188.38,2.96]
[1755736824275,0.03630276,188.43,188.37,184.48866789]
[1755736824469,0.03630276,188.43,188.41,2.96]
[1755736825875,7.1215092,188.43,188.37,187.33866789]
[1755736826074,7.08520644,188.41,188.37,2.85]
[1755736826974,7.19520644,188.41,188.37,2.85]
[1755736828473,7.08520644,188.41,188.32,7.08520644]
[1755736828680,7.08520644,188.39,188.33,4.7951972]
[1755736828875,7.08520644,188.39,188.33,2.85]
[1755736829183,7.08520644,188.35,188.26,9.93520644]
[1755736829476,7.08520644,188.33,188.27,1.948335]
[1755736829674,7.08520644,188.33,188.26,9.93520644]
[1755736829675,7.08520644,188.33,188.28,1.94766689]
[1755736829871,7.08520644,188.33,188.26,7.08520644]
[1755736829872,0.03596274,188.32,188.26,7.08520644]
[1755736830076,0.03596274,188.32,188.3,2.85]
[1755736830571,0.03596274,188.32,188.27,2.85]
[1755736830776,0.03596274,188.32,188.3,2.85]
[1755736830977,0.03596274,188.32,188.23,2.85]
[1755736831178,0.03596274,188.32,188.28,2.85]
[1755736831381,0.03596274,188.32,188.29,7.08520644]
[1755736831573,133.68,188.36,188.31,7.08520644]
[1755736831778,133.68,188.36,188.33,2.85]
[1755736831980,133.68,188.36,188.34,2.85]
[1755736832385,7.08520644,188.39,188.33,7.08520644]
[1755736832386,133.76,188.39,188.33,7.08520644]
[1755736832583,133.74,188.4,188.34,2.85]
[1755736832780,133.74,188.4,188.34,2.88820155]
[1755736833284,7.08520644,188.41,188.34,2.88820155]
[1755736833482,133.76,188.4,188.35,7.08520644]
[1755736833781,0.15,188.44,188.37,2.85]
[1755736833782,7.08520644,188.43,188.37,2.85]
[1755736833979,7.08520644,188.43,188.35,7.08520644]
[1755736834183,133.74,188.41,188.38,2.85]
[1755736834888,133.74,188.41,188.38,2.88383671]
[1755736835284,7.08520644,188.43,188.38,2.88383671]
[1755736835488,133.68,188.41,188.38,2.88383671]
[1755736836485,133.68,188.41,188.39,2.85]
[1755736837484,140.76520644,188.41,188.38,0.03383671]
[1755736837693,7.23520644,188.39,188.38,0.03383671]
[1755736838987,12.39260644,188.39,188.38,0.03383671]
[1755736839188,145.97260644,188.39,188.38,0.03383671]
[1755736840682,145.87260644,188.39,188.38,0.03383671]
[1755736842997,146.02260644,188.39,188.38,0.03383671]
[1755736843494,141.25520644,188.39,188.29,2.85]
[1755736843689,7.23520644,188.35,188.3,4.80688478]
[1755736843885,133.42,188.34,188.31,1.95688478]
[1755736844091,7.08520644,188.33,188.3,2.85]
[1755736844394,7.08520644,188.33,188.31,1.95712102]
[1755736844595,7.08520644,188.33,188.3,2.85]
[1755736844893,7.12262264,188.33,188.31,1.95670435]
[1755736845091,0.0374162,188.33,188.27,9.93520644]
[1755736845291,0.0374162,188.33,188.29,2.85]
[1755736845486,0.0374162,188.33,188.3,1.95669868]
[1755736845794,0.0374162,188.33,188.31,4.80669868]
[1755736845997,0.0374162,188.33,188.31,2.85]
[1755736846596,5.3096,188.32,188.31,2.85]
[1755736846798,5.3096,188.32,188.31,4.80860442]
[1755736847200,7.08520644,188.41,188.32,2.85]
[1755736847394,0.15,188.43,188.36,2.85]
[1755736847395,133.26,188.4,188.36,2.85]
[1755736847698,133.26,188.4,188.37,2.85]
[1755736848193,7.27520644,188.39,188.33,7.08520644]
[1755736848391,7.27520644,188.39,188.37,0.03843556]
[1755736848694,7.27520644,188.39,188.32,7.08520644]
[1755736848899,7.27520644,188.39,188.33,1.9577308]
[1755736849099,7.27520644,188.39,188.36,0.03382467]
[1755736849301,133.26,188.4,188.36,2.88382467]
[1755736850299,7.08520644,188.41,188.36,2.88382467]
[1755736850501,133.82,188.4,188.37,2.85]
[1755736850899,7.08520644,188.41,188.37,2.85]
[1755736851098,133.78,188.39,188.37,2.85]
[1755736851403,133.78,188.39,188.36,0.03382467]
[1755736851606,0.19,188.38,188.36,0.03382467]
[1755736852102,140.86520644,188.39,188.36,0.03382467]
[1755736854906,5.3079,188.37,188.36,0.03382467]
[1755736856795,138.7879,188.37,188.36,0.03382467]
[1755736857607,138.7879,188.37,188.36,3.06382467]
[1755736858296,138.7879,188.37,188.36,5.02590785]
[1755736858707,5.3079,188.37,188.36,5.02590785]
[1755736858908,133.4,188.38,188.36,5.02590785]
[1755736859109,133.4,188.38,188.37,4.99208318]
[1755736860100,363.95520644,188.42,188.37,4.99208318]
[1755736860300,137.84423204,188.41,188.38,4.99175266]
[1755736860499,4.46423204,188.45,188.41,3.03]
[1755736860708,133.34,188.44,188.41,3.03]
[1755736861410,4.46423204,188.5,188.42,9.45599364]
[1755736861411,0.2,188.5,188.42,9.45599364]
[1755736861704,0.2,188.5,188.43,1.9617616]
[1755736861909,0.2,188.47,188.44,1.9617616]
[1755736862110,138.08423204,188.46,188.42,7.49423204]
[1755736862406,133.48,188.45,188.43,1.96022542]
[1755736862599,133.48,188.45,188.44,1.96022542]
[1755736863004,138.9857,188.45,188.44,1.96022542]
[1755736863310,0.2,188.43,188.42,0.04069813]
[1755736863509,9.77043204,188.43,188.42,2.00219321]
[1755736864205,0.2,188.46,188.42,5.03219321]
[1755736864409,133.48,188.45,188.43,1.96092642]
[1755736864605,7.33898927,188.48,188.44,1.96092642]
[1755736864811,5.3054,188.46,188.43,3.03]
[1755736865110,0.2,188.46,188.42,0.04069813]
[1755736865312,0.2,188.46,188.43,1.96066554]
[1755736865505,5.3057,188.45,188.42,3.07069813]
[1755736865705,5.3057,188.45,188.43,1.96066554]
[1755736865905,5.3057,188.45,188.42,3.07069813]
[1755736866105,5.3057,188.45,188.43,1.960574]
[1755736866310,5.3057,188.45,188.42,3.07069813]
[1755736866506,5.3057,188.45,188.43,1.960574]
[1755736866811,5.3057,188.45,188.42,3.07069813]
[1755736867010,5.3057,188.45,188.43,1.9601716]
[1755736867210,5.3057,188.45,188.42,3.07069813]
[1755736867412,7.13898927,188.44,188.42,0.04069813]
[1755736867609,133.62,188.43,188.42,0.04069813]
[1755736868510,138.9262,188.43,188.42,0.04069813]
[1755736869614,138.6662,188.43,188.42,0.04069813]
[1755736870000,138.6062,188.43,188.42,0.04069813]
[1755736870200,138.6062,188.43,188.42,2.00108829]
[1755736871410,138.6062,188.43,188.42,2.00107068]
[1755736871710,138.6062,188.43,188.42,2.00110448]
[1755736871910,138.6062,188.43,188.42,0.04069813]
[1755736872309,138.8062,188.43,188.42,0.04069813]
[1755736876513,5.3062,188.43,188.42,0.04069813]
[1755736876814,133.1,188.43,188.42,5.03193473]
[1755736877115,133.1,188.43,188.42,12.170924]
[1755736877514,133.06,188.46,188.43,3.03]
[1755736877811,133.06,188.46,188.45,3.03]
[1755736878017,133.06,188.46,188.45,4.99786204]
[1755736879014,133.06,188.46,188.45,1.96786204]
[1755736879613,133.06,188.46,188.45,4.99786204]
[1755736879920,133.06,188.46,188.45,4.99677226]
[1755736880116,133.06,188.46,188.45,1.96677226]
[1755736880322,133.06,188.46,188.45,4.99677226]
[1755736881710,356.8,188.52,188.45,4.99677226]
[1755736882019,132.92,188.51,188.48,3.03]
[1755736882610,132.92,188.51,188.49,3.03]
[1755736883616,132.92,188.51,188.47,10.207239]
[1755736884416,0.2,188.53,188.5,4.45911981]
[1755736884721,0.2,188.53,188.49,4.45911981]
[1755736884722,132.88,188.52,188.49,4.45911981]
[1755736885217,0.2,188.53,188.49,3.03]
[1755736885421,132.82,188.52,188.51,3.03]
[1755736885719,132.82,188.53,188.51,3.03]
[1755736885921,132.82,188.53,188.51,7.48911981]
[1755736886116,132.82,188.53,188.52,2.74]
[1755736886416,132.82,188.53,188.51,4.45911981]
[1755736886622,0.18,188.52,188.5,0.03844779]
[1755736886819,0.18,188.51,188.5,0.03844779]
[1755736891619,4.63911981,188.55,188.5,0.03844779]
[1755736891823,137.15911981,188.54,188.5,2.77844779]
[1755736892026,132.68,188.53,188.5,2.77844779]
[1755736892227,4.45911981,188.52,188.5,0.03844779]
[1755736892429,0.18,188.51,188.5,0.03844779]
[1755736892622,4.45911981,188.52,188.5,0.03844779]
[1755736892826,132.68,188.53,188.5,2.77844779]
[1755736893624,4.45911981,188.54,188.5,2.77844779]
[1755736893825,132.7,188.52,188.5,2.77844779]
[1755736895032,0.18,188.59,188.51,4.69980369]
[1755736895227,4.63911981,188.59,188.53,4.45911981]
[1755736895427,361.13911981,188.62,188.56,2.74]
[1755736895730,132.9,188.61,188.57,7.19911981]
[1755736896120,133.08,188.61,188.57,7.19911981]
[1755736896321,0.18,188.61,188.57,7.19911981]
[1755736896524,132.92,188.6,188.58,2.74]
[1755736897433,361.13911981,188.62,188.58,2.74]
[1755736897628,361.13911981,188.62,188.57,4.49914351]
[1755736897834,132.9,188.61,188.59,2.74]
[1755736898135,132.9,188.61,188.59,7.19911981]
[1755736898334,4.63911981,188.65,188.59,7.19911981]
[1755736898534,0.18,188.63,188.59,7.19911981]
[1755736899427,132.88,188.62,188.59,7.19911981]
[1755736899624,4.45911981,188.61,188.57,0.0400237]
[1755736899824,4.45911981,188.59,188.57,0.0400237]
[1755736900932,0.18,188.59,188.57,0.0400237]
[1755736901134,4.45911981,188.58,188.57,0.0400237]
[1755736901334,4.63911981,188.58,188.57,0.0400237]
[1755736902441,7.31176886,188.58,188.57,0.0400237]
[1755736905742,7.13176886,188.58,188.57,0.0400237]
[1755736906840,7.31176886,188.58,188.57,0.0400237]
[1755736907036,14.44353772,188.58,188.57,0.0400237]
[1755736907242,14.26353772,188.58,188.48,2.74]
[1755736907543,7.13176886,188.53,188.49,1.95886057]
[1755736907742,132.6,188.52,188.49,2.74]
[1755736908342,132.6,188.52,188.5,2.74]
[1755736908545,132.63558079,188.52,188.5,2.74]
[1755736910445,132.63558079,188.52,188.46,12.43696886]
[1755736910640,132.63558079,188.52,188.51,2.74]
[1755736910840,132.6,188.52,188.51,2.74]
[1755736911640,0.03604785,188.53,188.51,2.74]
[1755736911846,0.03604785,188.53,188.52,2.74]
[1755736912342,132.6,188.55,188.53,2.74]
[1755736912549,132.6,188.55,188.54,2.74]
[1755736913848,0.04047287,188.56,188.55,2.74]
[1755736914449,0.04047287,188.56,188.55,4.69874268]
[1755736914651,132.6,188.61,188.55,5.23874268]
[1755736914850,132.6,188.61,188.56,9.09051154]
[1755736915051,132.6,188.61,188.58,2.74]
[1755736915352,132.6,188.61,188.59,2.74]
[1755736915751,0.18,188.6,188.52,9.87176886]
[1755736915951,0.18,188.6,188.53,1.9581665]
[1755736916249,7.31176886,188.59,188.58,0.03516111]
[1755736916448,7.31176886,188.59,188.52,2.74]
[1755736916648,0.18,188.58,188.57,0.03727608]
[1755736919852,7.31176886,188.58,188.57,0.03727608]
[1755736920354,7.31176886,188.58,188.49,2.95]
[1755736920655,7.31176886,188.58,188.48,7.13176886]
[1755736920656,7.13176886,188.54,188.5,4.91233974]
[1755736920852,139.71176886,188.54,188.51,1.96233974]
[1755736921153,0.18,188.53,188.46,2.95]
[1755736921354,0.18,188.53,188.47,1.96240326]
[1755736921555,0.03472163,188.51,188.48,1.96240326]
[1755736921752,0.03472163,188.51,188.5,2.95]
[1755736921953,0.03472163,188.51,188.5,4.91240326]
[1755736922146,0.03472163,188.51,188.5,4.91372268]
[1755736923951,0.03472163,188.51,188.5,1.96372268]
[1755736924456,4.4942971,188.51,188.5,1.96372268]
[1755736925958,0.03472163,188.51,188.5,1.96372268]
[1755736927051,0.03472163,188.51,188.5,4.91372268]
[1755736927459,0.03472163,188.51,188.5,1.96372268]
[1755736928060,0.03472163,188.51,188.48,4.45957547]
[1755736928259,0.03472163,188.51,188.49,1.96714844]
[1755736928462,4.45957547,188.58,188.5,10.88629938]
[1755736928663,4.45957547,188.6,188.5,10.88629938]
[1755736928664,4.45957547,188.6,188.52,4.45957547]
[1755736928964,137.03957547,188.59,188.54,4.45957547]
[1755736929255,137.03957547,188.59,188.55,4.91714844]
[1755736929455,4.45957547,188.59,188.56,4.91714844]
[1755736929661,137.03957547,188.59,188.56,2.95]
[1755736930265,4.45957547,188.59,188.57,1.96542967]
[1755736930463,0.18,188.61,188.58,4.91502922]
[1755736930464,4.45957547,188.61,188.58,4.91502922]
[1755736930761,132.58,188.6,188.58,2.95]
[1755736931263,132.58,188.6,188.59,1.96437577]
[1755736931464,4.45957547,188.61,188.59,1.96437577]
[1755736931765,137.03957547,188.61,188.57,2.95]
[1755736932061,137.25957547,188.61,188.58,1.96428363]
[1755736932261,137.25957547,188.61,188.57,2.95]
[1755736932462,0.22,188.6,188.56,4.45957547]
[1755736932661,0.22,188.6,188.57,1.96433344]
[1755736932859,0.22,188.6,188.56,4.45957547]
[1755736932860,0.22,188.58,188.55,0.0382711]
[1755736933169,137.03957547,188.61,188.56,1.96487288]
[1755736933365,137.03957547,188.61,188.57,1.96487288]
[1755736933567,137.25957547,188.61,188.58,1.96487288]
[1755736933766,137.25957547,188.61,188.56,2.95]
[1755736933964,137.25957547,188.61,188.57,1.9644067]
[1755736934165,137.25957547,188.61,188.58,1.9644067]
[1755736934364,137.25957547,188.61,188.56,4.45957547]
[1755736934565,137.25957547,188.61,188.57,4.91435661]
[1755736934763,137.25957547,188.61,188.58,1.96435661]
[1755736935060,4.67957547,188.61,188.57,2.95]
[1755736935266,132.56,188.6,188.58,1.96451525]
[1755736935465,132.56,188.6,188.57,2.95]
[1755736935763,132.56,188.6,188.58,1.96484427]
[1755736935968,0.22,188.58,188.55,0.0382711]
[1755736936168,0.22,188.58,188.56,1.96522422]
[1755736936366,0.22,188.58,188.57,1.96522422]
[1755736936568,4.45957547,188.59,188.57,1.96522422]
[1755736936772,4.45957547,188.59,188.55,2.9882711]
[1755736937067,4.45957547,188.59,188.56,1.96589654]
[1755736937263,132.56,188.6,188.58,2.95]
[1755736937475,0.22,188.64,188.59,1.96593392]
[1755736937667,4.45957547,188.62,188.58,2.95]
[1755736937967,4.45957547,188.62,188.59,1.96593392]
[1755736938178,4.45957547,188.62,188.58,2.98462003]
[1755736938365,4.45957547,188.62,188.59,1.96951641]
[1755736938565,136.99957547,188.62,188.58,2.98462003]
[1755736938768,136.99957547,188.62,188.59,1.96951641]